fUST/lending_fUST_20260113
["ID","MTS","AMOUNT","RATE_DAILY","PERIOD"]
[401499811,1768273843636,-1501.05825586,0.00014795,2]
[401499813,1768273843645,-965.26033505,0.00014795,2]
[401499815,1768273843656,-1468.56684157,0.00014916,2]
[401499817,1768273843665,-2000.0,0.00014916,2]
[401499819,1768273843674,-2000.0,0.00014916,2]
[401499821,1768273843683,-2000.0,0.00014916,2]
[401499823,1768273843693,-2000.0,0.00014916,2]
[401499824,1768273843702,-2000.0,0.00014916,2]
[401499826,1768273843711,-155.72124395,0.00014916,2]
[401499828,1768273843720,-2000.0,0.00014916,2]
[401499830,1768273843729,-501.3821036,0.00014916,2]
[401499832,1768273843738,-500.0,0.00014916,2]
[401499834,1768273843747,-501.00821416,0.00014916,2]
[401499836,1768273843756,-2000.0,0.00014916,2]
[401499838,1768273843766,-2000.0,0.00014916,2]
[401499840,1768273843775,-2000.0,0.00014916,2]
[401499842,1768273843784,-2000.0,0.00014916,2]
[401499844,1768273843794,-2000.0,0.00014916,2]
[401499846,1768273843803,-1115.07532372,0.00014916,2]
[401499848,1768273843812,-163.0,0.00015,2]
[401499850,1768273843820,-6030.78482044,0.00015103,2]
[401499852,1768273843830,-303.3619795,0.00015316,2]
[401499854,1768273843839,-1032.33423747,0.00015342,2]
[401499856,1768273843848,-1502.09397869,0.00015342,2]
[401499858,1768273843857,-502.76680069,0.00015342,2]
[401499859,1768273843866,-1527.24664975,0.00015342,2]
[401499860,1768273843875,-1001.48921188,0.00015342,2]
[401499861,1768273843884,-1503.11478262,0.00015342,2]
[401499862,1768273843893,-738.12965547,0.00015342,2]
[401499864,1768273843903,-2000.0,0.00015342,2]
[401499866,1768273843913,-508.65480008,0.00015342,2]
[401499868,1768273843922,-2000.0,0.00015342,2]
[401499870,1768273843932,-506.46904603,0.00015342,2]
[401499871,1768273843941,-823.0,0.00015362,2]
[401499873,1768273843950,-1003.32351431,0.00015464,2]
[401499874,1768273843959,-2025.97466783,0.00015464,2]
[401499875,1768273843968,-1005.08827412,0.00015464,2]
[401499876,1768273843977,-1003.70557583,0.00015464,2]
[401499877,1768273843986,-2500.0,0.00015464,2]
[401499878,1768273843995,-2500.0,0.00015464,2]
[401499879,1768273844005,-376.21269073,0.00015464,2]
[401499880,1768273844014,-1003.04077884,0.00015464,2]
[401499881,1768273844023,-2500.0,0.00015464,2]
[401499882,1768273844033,-2500.0,0.00015464,2]
[401499883,1768273844043,-2500.0,0.00015464,2]
[401499884,1768273844052,-438.80687588,0.00015501,2]
[401499885,1768273844062,-1000.0,0.00015797,2]
[401499886,1768273844072,-1002.43140219,0.0001589,2]
[401499887,1768273844081,-2500.0,0.0001589,2]
[401499888,1768273844090,-2004.76280293,0.00016012,2]
[401499889,1768273844100,-506.2119685,0.00016012,2]
[401499890,1768273844109,-3000.0,0.00016012,2]
[401499891,1768273844119,-3000.0,0.00016012,2]
[401499892,1768273844128,-3000.0,0.00016012,2]
[401499893,1768273844138,-229.07764705,0.00016136,7]
[401499894,1768273844147,-500.0,0.00016438,2]
[401499896,1768273844159,-442.87297618,0.00016438,2]
[401499897,1768273844169,-500.0,0.00016438,2]
[401499898,1768273844177,-200.0,0.00016438,2]
[401499899,1768273844186,-3000.0,0.00016438,2]
[401499900,1768273844196,-2511.02649148,0.0001656,2]
[401499901,1768273844205,-1041.72224603,0.0001656,2]
[401499902,1768273844215,-509.17780676,0.0001656,2]
[401499904,1768273844225,-1152.0,0.00016871,2]
[401499906,1768273844234,-1025.21475413,0.00016986,2]
[401499908,1768273844243,-2812.60494797,0.00016987,2]
[401499910,1768273844253,-1041.66666667,0.00017111,2]
[401499911,1768273844262,-496.47127164,0.00017247,2]
[401499912,1768273844272,-4757.55763433,0.00017247,2]
[401499913,1768273844282,-181.08010149,0.00017247,2]
[401499914,1768273844293,-187.78006525,0.00017247,2]
[401499915,1768273844304,-194.72792766,0.00017247,2]
[401499916,1768273844313,-201.93286099,0.00017247,2]
[401499917,1768273844322,-2398.4119403,0.00017247,2]
[401499918,1768273844331,-209.40437684,0.00017247,2]
[401499919,1768273844340,-217.15233878,0.00017247,2]
[401499920,1768273844349,-225.18697532,0.00017247,2]
[401499921,1768273844358,-233.51889341,0.00017247,2]
[401499922,1768273844367,-242.15909246,0.00017247,2]
[401499923,1768273844377,-251.11897888,0.00017247,2]
[401499924,1768273844386,-260.4103811,0.00017247,2]
[401499925,1768273844395,-270.0455652,0.00017247,2]
[401499926,1768273844405,-280.03725112,0.00017247,2]
[401499927,1768273844414,-290.39862941,0.00017247,2]
[401499928,1768273844423,-301.1433787,0.00017247,2]
[401499929,1768273844432,-250.0,0.00017247,2]
[401499930,1768273844441,-261.89610383,0.00017247,2]
[401499931,1768273844451,-1000.0,0.00017377,2]
[401499932,1768273844459,-244.0,0.00017377,2]
[401499933,1768273844469,-5042.42626027,0.00017412,2]
[401499934,1768273844479,-180.64778451,0.00017443,2]
[401499935,1768273844487,-496.88425651,0.00017501,2]
[401499936,1768273844497,-400.0,0.00017534,2]
[401499937,1768273844506,-514.84070869,0.00017795,2]
[401499938,1768273844515,-2487.15318209,0.00017795,2]
[401499939,1768273844524,-151.0,0.00017955,2]
[401499940,1768273844534,-1000.0,0.00018,2]
[401499941,1768273844543,-533.88981491,0.00018343,2]
[401499942,1768273844552,-2579.17784983,0.00018343,2]
[401499943,1768273844562,-151.0,0.00018461,2]
[401499944,1768273844574,-1613.0,0.00018528,2]
[401499945,1768273844586,-600.0,0.0001863,2]
[401499946,1768273844598,-728.0,0.0001867,2]
[401499947,1768273844606,-728.0,0.0001867,2]
[401499948,1768273844618,-6030.78482044,0.00018672,2]
[401499949,1768273844627,-164.654,0.0001888,2]
[401499950,1768273844637,-553.64373807,0.00018891,2]
[401499951,1768273844647,-2674.60743027,0.00018891,2]
[401499952,1768273844658,-303.10001603,0.000189,2]
[401499953,1768273844668,-303.10001603,0.000189,2]
[401499954,1768273844677,-13546.7822871,0.000189,2]
[401499955,1768273844687,-151.0,0.00018966,2]
[401499956,1768273844697,-283.46291317,0.00018966,2]
[401499957,1768273844707,-1133.85165267,0.00018966,2]
[401499958,1768273844716,-2551.16621851,0.00018966,2]
[401499959,1768273844725,-4535.40661068,0.00018966,2]
[401499960,1768273844734,-243.36495133,0.00018966,2]
[401499961,1768273844743,-500.0,0.00019,2]
[401499962,1768273844753,-160.0,0.00019033,3]
[401499963,1768273844762,-1785.1081331,0.0001906,2]
[401499964,1768273844771,-1481.8791277,0.0001906,2]
[401499965,1768273844785,-63917.0171541,0.0001906,2]
[401499966,1768273844794,-181.1434584,0.0001906,2]
[401499967,1768273844803,-17444.0551768,0.0001906,2]
[401499968,1768273844813,-172.648383,0.00019089,2]
[401499969,1768273844823,-172.648383,0.00019089,2]
[401499970,1768273844832,-172.648383,0.00019089,2]
[401499971,1768273844841,-172.648383,0.00019089,2]
[401499972,1768273844851,-303.10001603,0.00019089,2]
[401499973,1768273844860,-303.10001603,0.00019089,2]
[401499974,1768273844869,-179702.401634,0.00019089,2]
[401499975,1768273844878,-1000.0,0.00019115,2]
[401499976,1768273844887,-492.0,0.00019115,2]
[401499977,1768273844896,-360.2,0.00019178,2]
[401499978,1768273844906,-17807.79,0.000192,2]
[401499979,1768273845017,-303.10001603,0.00019278,2]
[401499980,1768273845026,-303.10001603,0.00019278,2]
[401499981,1768273845034,-356751.3282008,0.000194,2]
[401499982,1768273845357,-485.21884621,0.0001729,2]
[401499984,1768273845865,-391.42400072,0.0001729,2]
[401499990,1768273881870,1500.0,0.00030137,120]
[401499991,1768274015636,-300.0,0.00011499,2]
[401499992,1768274015660,-700.0,0.000115,2]
[401499993,1768274018203,-1000.0,0.000115,2]
[401499994,1768274019036,-1000.0,0.000115,2]
[401499995,1768274019296,-1000.0,0.000115,2]
[401499996,1768274019619,-1000.0,0.000115,2]
[401499997,1768274019950,-1000.0,0.000115,2]
[401499998,1768274020271,-1000.0,0.000115,2]
[401499999,1768274020616,-1000.0,0.000115,2]
[401500000,1768274020954,-1000.0,0.000115,2]
[401500001,1768274021296,-1000.0,0.000115,2]
[401500002,1768274021680,-1000.0,0.000115,2]
[401500003,1768274021982,-1000.0,0.000115,2]
[401500004,1768274022341,-1000.0,0.000115,2]
[401500005,1768274022660,-1000.0,0.000115,2]
[401500006,1768274022988,-1000.0,0.000115,2]
[401500007,1768274024765,-1000.0,0.000115,2]
[401500008,1768274025170,-1000.0,0.000115,2]
[401500009,1768274025459,-1000.0,0.000115,2]
[401500010,1768274025803,-1000.0,0.000115,2]
[401500011,1768274027462,-1000.0,0.000115,2]
[401500012,1768274028745,-1000.0,0.000115,2]
[401500013,1768274029871,-1000.0,0.000115,2]
[401500014,1768274031275,-1000.0,0.000115,2]
[401500015,1768274033194,-1000.0,0.000115,2]
[401500016,1768274034580,-1000.0,0.000115,2]
[401500017,1768274068115,500.0,0.00030136,120]
[401500018,1768274068385,500.0,0.00030136,120]
[401500019,1768274068674,500.0,0.00030136,120]
[401500020,1768274068920,500.0,0.00030136,120]
[401500021,1768274069182,500.0,0.00030136,120]
[401500022,1768274069451,500.0,0.00030136,120]
[401500023,1768274069714,500.0,0.00030136,120]
[401500024,1768274069967,500.0,0.00030136,120]
[401500025,1768274070213,500.0,0.00030136,120]
[401500026,1768274070470,500.0,0.00030136,120]
[401500027,1768274070763,500.0,0.00030136,120]
[401500028,1768274071102,341.58719961,0.00030136,120]
[401500029,1768274071491,-300.0,0.00011499,2]
[401500030,1768274071514,-200.0,0.00011499,2]
[401500031,1768274404330,152.57,5e-05,2]
[401500032,1768274404806,152.57,5.2e-05,2]
[401500033,1768274405389,152.57,5.3e-05,2]
[401500034,1768274405849,152.57,5.5e-05,2]
[401500035,1768274406407,152.57,5.7e-05,2]
[401500036,1768274406865,152.57,5.8e-05,2]
[401500037,1768274407477,152.57,6e-05,2]
[401500038,1768274408446,152.57,6.2e-05,2]
[401500039,1768274409064,152.57,6.3e-05,2]
[401500040,1768274409661,152.57,6.5e-05,2]
[401500041,1768274410174,152.57,6.7e-05,2]
[401500042,1768274410720,152.57,6.8e-05,2]
[401500043,1768274411267,152.57,7e-05,2]
[401500044,1768274411733,152.57,7.2e-05,2]
[401500045,1768274412298,152.57,7.3e-05,2]
[401500046,1768274412760,152.57,7.5e-05,2]
[401500047,1768274413313,152.57,7.7e-05,2]
[401500048,1768274413870,152.57,7.8e-05,2]
[401500049,1768274414328,152.57,8e-05,2]
[401500050,1768274414902,152.57,8.2e-05,2]
[401500051,1768274415343,152.57,8.3e-05,2]
[401500052,1768274415901,152.57,8.5e-05,2]
[401500053,1768274416454,152.57,8.7e-05,2]
[401500054,1768274417096,152.57,8.8e-05,2]
[401500055,1768274417404,152.57,9e-05,2]
[401500056,1768274417969,152.57,9.2e-05,2]
[401500057,1768274418423,152.57,9.3e-05,2]
[401500058,1768274418965,152.57,9.5e-05,2]
[401500059,1768274456081,21204.15,0.00030137,120]
[401500066,1768274921768,-300.0,0.00011223,2]
[401500067,1768274921790,-500.0,0.00011223,2]
[401500068,1768274921810,-200.0,0.00011224,2]
[401500069,1768274923834,-159.98252078,0.00011224,2]
[401500070,1768274923868,-500.0,0.00011224,2]
[401500071,1768274923890,-340.01747922,0.00011224,2]
[401500072,1768274925352,-159.98252078,0.00011224,2]
[401500073,1768274925374,-500.0,0.00011224,2]
[401500074,1768274925398,-340.01747922,0.00011224,2]
[401500075,1768274926438,-159.98252078,0.00011224,2]
[401500076,1768274926459,-840.01747922,0.00011291,2]
[401500077,1768274927481,-359.98252078,0.00011291,2]
[401500078,1768274927501,-300.0,0.00011359,2]
[401500079,1768274927525,-340.01747922,0.0001136,2]
[401500080,1768274927898,-173.10907816,0.0001136,2]
[401500081,1768274927918,-300.0,0.0001136,2]
[401500082,1768274927938,-300.0,0.0001136,2]
[401500083,1768274927958,-226.89092184,0.0001136,2]
[401500084,1768274928271,-73.10907816,0.0001136,2]
[401500085,1768274928293,-926.89092184,0.0001136,2]
[401500086,1768274928696,-1000.0,0.0001136,2]
[401500087,1768274928991,-1000.0,0.0001136,2]
[401500088,1768274929351,-1000.0,0.0001136,2]
[401500091,1768274929778,-1000.0,0.0001136,2]
[401500092,1768274930257,-1000.0,0.0001136,2]
[401500094,1768274930661,-1000.0,0.0001136,2]
[401500095,1768274930965,-1000.0,0.0001136,2]
[401500096,1768274931307,-1000.0,0.0001136,2]
[401500097,1768274931743,-1000.0,0.0001136,2]
[401500098,1768274932409,-1000.0,0.0001136,2]
[401500099,1768274932786,-1000.0,0.0001136,2]
[401500100,1768274933114,-1000.0,0.0001136,2]
[401500101,1768274933485,-1000.0,0.0001136,2]
[401500102,1768274933868,-1000.0,0.0001136,2]
[401500103,1768274935431,-1000.0,0.0001136,2]
[401500104,1768274936311,-1000.0,0.0001136,2]
[401500105,1768274936424,-1000.0,0.0001136,2]
[401500106,1768274936698,-1000.0,0.0001136,2]
[401500107,1768274937141,-1000.0,0.0001136,2]
[401500124,1768275032044,-500.0,0.00011222,2]
[401500125,1768275032054,-578.0,0.00011222,2]
[401500126,1768275032065,-300.0,0.00011259,2]
[401500127,1768275032075,-300.0,0.00011259,2]
[401500128,1768275032084,-300.0,0.00011259,2]
[401500129,1768275032095,-300.0,0.00011259,2]
[401500130,1768275032104,-1200.0,0.00011259,2]
[401500131,1768275032114,-90755.19037234,0.0001126,2]
[401500132,1768275032126,-804.01911172,0.0001126,2]
[401500133,1768275032137,-8602.09800152,0.0001126,2]
[401500169,1768275038164,-899838.69251442,0.0001126,2]
[401500170,1768275038174,-543.68980212,0.00011359,2]
[401500171,1768275038184,-500.0,0.00011361,2]
[401500172,1768275038194,-500.0,0.00011361,2]
[401500173,1768275038204,-263.89076576,0.00011361,2]
[401500174,1768275038213,-202.03227557,0.00011361,2]
[401500175,1768275038223,-150.88562829,0.00011361,2]
[401500176,1768275038233,-500.0,0.00011361,2]
[401500177,1768275038243,-208.46182822,0.00011361,2]
[401500178,1768275038253,-19674.535481,0.00011383,2]
[401500179,1768275038263,-50000.0,0.00011383,2]
[401500180,1768275038273,-7835.846079,0.000114,2]
[401500181,1768275038282,-500.0,0.00011494,2]
[401500182,1768275038292,-500.0,0.00011494,2]
[401500183,1768275038301,-500.0,0.00011494,2]
[401500184,1768275038311,-475.07646599,0.00011494,2]
[401500185,1768275038321,-500.0,0.00011494,2]
[401500186,1768275038331,-405.81670383,0.00011494,2]
[401500187,1768275038340,-500.0,0.00011494,2]
[401500188,1768275038350,-500.0,0.00011494,2]
[401500189,1768275038360,-500.0,0.00011494,2]
[401500190,1768275038369,-500.0,0.00011494,2]
[401500191,1768275038379,-500.0,0.00011494,2]
[401500192,1768275038388,-500.0,0.00011494,2]
[401500193,1768275038398,-241.42199112,0.00011494,2]
[401500194,1768275038407,-500.0,0.00011494,2]
[401500195,1768275038417,-500.0,0.00011494,2]
[401500196,1768275038427,-500.0,0.00011494,2]
[401500197,1768275038436,-500.0,0.00011494,2]
[401500198,1768275038445,-500.0,0.00011494,2]
[401500199,1768275038455,-500.0,0.00011494,2]
[401500200,1768275038465,-500.0,0.00011494,2]
[401500201,1768275038475,-500.0,0.00011494,2]
[401500202,1768275038485,-500.0,0.00011494,2]
[401500203,1768275038494,-229.21205713,0.00011494,2]
[401500204,1768275038504,-500.0,0.00011494,2]
[401500205,1768275038514,-500.0,0.00011494,2]
[401500206,1768275038523,-500.0,0.00011494,2]
[401500207,1768275038534,-500.0,0.00011494,2]
[401500208,1768275038543,-500.0,0.00011494,2]
[401500209,1768275038552,-500.0,0.00011494,2]
[401500210,1768275038561,-500.0,0.00011494,2]
[401500211,1768275038570,-500.0,0.00011494,2]
[401500212,1768275038579,-500.0,0.00011494,2]
[401500213,1768275038589,-500.0,0.00011494,2]
[401500214,1768275038600,-500.0,0.00011494,2]
[401500215,1768275038609,-500.0,0.00011494,2]
[401500216,1768275038618,-500.0,0.00011494,2]
[401500217,1768275038628,-500.0,0.00011494,2]
[401500218,1768275038639,-500.0,0.00011494,2]
[401500219,1768275038648,-500.0,0.00011494,2]
[401500220,1768275038658,-500.0,0.00011494,2]
[401500221,1768275038668,-500.0,0.00011494,2]
[401500222,1768275038678,-500.0,0.00011494,2]
[401500223,1768275038688,-500.0,0.00011494,2]
[401500224,1768275038697,-500.0,0.00011494,2]
[401500225,1768275038707,-500.0,0.00011494,2]
[401500226,1768275038717,-474.89434105,0.00011494,2]
[401500227,1768275038727,-500.0,0.00011494,2]
[401500228,1768275038737,-500.0,0.00011494,2]
[401500229,1768275038747,-500.0,0.00011494,2]
[401500230,1768275038757,-500.0,0.00011494,2]
[401500231,1768275038767,-500.0,0.00011494,2]
[401500232,1768275038776,-500.0,0.00011494,2]
[401500233,1768275038786,-500.0,0.00011494,2]
[401500234,1768275038796,-500.0,0.00011494,2]
[401500235,1768275038805,-500.0,0.00011494,2]
[401500236,1768275038815,-500.0,0.00011494,2]
[401500237,1768275038825,-500.0,0.00011494,2]
[401500238,1768275038835,-500.0,0.00011494,2]
[401500239,1768275038845,-500.0,0.00011494,2]
[401500240,1768275038854,-500.0,0.00011494,2]
[401500241,1768275038864,-500.0,0.00011494,2]
[401500242,1768275038874,-455.79050889,0.00011494,2]
[401500243,1768275038883,-500.0,0.00011494,2]
[401500244,1768275038893,-500.0,0.00011494,2]
[401500245,1768275038903,-500.0,0.00011494,2]
[401500246,1768275038917,-500.0,0.00011494,2]
[401500247,1768275038927,-500.0,0.00011494,2]
[401500248,1768275038936,-500.0,0.00011494,2]
[401500249,1768275038947,-500.0,0.00011494,2]
[401500250,1768275038956,-500.0,0.00011494,2]
[401500251,1768275038967,-500.0,0.00011494,2]
[401500252,1768275038977,-500.0,0.00011494,2]
[401500253,1768275038997,-500.0,0.00011494,2]
[401500254,1768275039009,-500.0,0.00011494,2]
[401500255,1768275039019,-500.0,0.00011494,2]
[401500256,1768275039029,-500.0,0.00011494,2]
[401500257,1768275039039,-500.0,0.00011494,2]
[401500258,1768275039049,-500.0,0.00011494,2]
[401500259,1768275039059,-500.0,0.00011494,2]
[401500260,1768275039069,-500.0,0.00011494,2]
[401500261,1768275039080,-500.0,0.00011494,2]
[401500262,1768275039089,-500.0,0.00011494,2]
[401500263,1768275039099,-500.0,0.00011494,2]
[401500264,1768275039109,-500.0,0.00011494,2]
[401500265,1768275039119,-500.0,0.00011494,2]
[401500266,1768275039129,-500.0,0.00011494,2]
[401500267,1768275039139,-450.0,0.00011494,2]
[401500268,1768275039150,-500.0,0.00011494,2]
[401500269,1768275039160,-500.0,0.00011494,2]
[401500270,1768275039170,-500.0,0.00011494,2]
[401500271,1768275039180,-500.0,0.00011494,2]
[401500272,1768275039190,-500.0,0.00011494,2]
[401500273,1768275039200,-500.0,0.00011494,2]
[401500274,1768275039210,-500.0,0.00011494,2]
[401500275,1768275039219,-500.0,0.00011494,2]
[401500276,1768275039229,-500.0,0.00011494,2]
[401500277,1768275039239,-500.0,0.00011494,2]
[401500278,1768275039248,-500.0,0.00011494,2]
[401500279,1768275039258,-500.0,0.00011494,2]
[401500280,1768275039267,-500.0,0.00011494,2]
[401500281,1768275039277,-500.0,0.00011494,2]
[401500282,1768275039286,-500.0,0.00011494,2]
[401500283,1768275039295,-500.0,0.00011494,2]
[401500284,1768275039467,-500.0,0.00011494,2]
[401500285,1768275039477,-500.0,0.00011494,2]
[401500286,1768275039488,-500.0,0.00011494,2]
[401500287,1768275039497,-500.0,0.00011494,2]
[401500288,1768275039506,-500.0,0.00011494,2]
[401500289,1768275039515,-500.0,0.00011494,2]
[401500290,1768275039524,-500.0,0.00011494,2]
[401500291,1768275039533,-500.0,0.00011494,2]
[401500292,1768275039543,-500.0,0.00011494,2]
[401500293,1768275039552,-500.0,0.00011494,2]
[401500294,1768275039561,-500.0,0.00011494,2]
[401500295,1768275039570,-500.0,0.00011494,2]
[401500296,1768275039579,-500.0,0.00011494,2]
[401500297,1768275039588,-500.0,0.00011494,2]
[401500298,1768275039597,-500.0,0.00011494,2]
[401500299,1768275039607,-500.0,0.00011494,2]
[401500300,1768275039617,-500.0,0.00011494,2]
[401500301,1768275039627,-500.0,0.00011494,2]
[401500302,1768275039636,-500.0,0.00011494,2]
[401500303,1768275039646,-500.0,0.00011494,2]
[401500304,1768275039655,-500.0,0.00011494,2]
[401500305,1768275039665,-500.0,0.00011494,2]
[401500306,1768275039674,-500.0,0.00011494,2]
[401500307,1768275039684,-500.0,0.00011494,2]
[401500308,1768275039693,-500.0,0.00011494,2]
[401500309,1768275039703,-500.0,0.00011494,2]
[401500310,1768275039712,-500.0,0.00011494,2]
[401500311,1768275039721,-500.0,0.00011494,2]
[401500312,1768275039730,-500.0,0.00011494,2]
[401500313,1768275039740,-500.0,0.00011494,2]
[401500314,1768275039749,-500.0,0.00011494,2]
[401500315,1768275039759,-500.0,0.00011494,2]
[401500316,1768275039769,-500.0,0.00011494,2]
[401500317,1768275039782,-500.0,0.00011494,2]
[401500318,1768275039792,-500.0,0.00011494,2]
[401500319,1768275039802,-500.0,0.00011494,2]
[401500320,1768275039811,-500.0,0.00011494,2]
[401500321,1768275039821,-500.0,0.00011494,2]
[401500322,1768275039831,-500.0,0.00011494,2]
[401500323,1768275039841,-500.0,0.00011494,2]
[401500324,1768275039850,-500.0,0.00011494,2]
[401500325,1768275039860,-500.0,0.00011494,2]
[401500326,1768275039869,-500.0,0.00011494,2]
[401500327,1768275039879,-500.0,0.00011494,2]
[401500328,1768275039889,-500.0,0.00011494,2]
[401500329,1768275039899,-608.32159345,0.00011494,2]
[401500330,1768275039910,-500.0,0.00011494,2]
[401500331,1768275039919,-500.0,0.00011494,2]
[401500332,1768275039929,-500.0,0.00011494,2]
[401500333,1768275039940,-500.0,0.00011494,2]
[401500334,1768275039950,-500.0,0.00011494,2]
[401500335,1768275039959,-500.0,0.00011494,2]
[401500336,1768275039969,-500.0,0.00011494,2]
[401500337,1768275039979,-500.0,0.00011494,2]
[401500338,1768275039988,-500.0,0.00011494,2]
[401500339,1768275039998,-500.0,0.00011494,2]
[401500340,1768275040007,-500.0,0.00011494,2]
[401500341,1768275040017,-500.0,0.00011494,2]
[401500342,1768275040026,-500.0,0.00011494,2]
[401500343,1768275040036,-500.0,0.00011494,2]
[401500344,1768275040046,-500.0,0.00011494,2]
[401500345,1768275040055,-500.0,0.00011494,2]
[401500346,1768275040065,-500.0,0.00011494,2]
[401500347,1768275040074,-500.0,0.00011494,2]
[401500348,1768275040082,-500.0,0.00011494,2]
[401500349,1768275040091,-500.0,0.00011494,2]
[401500350,1768275040102,-500.0,0.00011494,2]
[401500351,1768275040113,-500.0,0.00011494,2]
[401500352,1768275040125,-161.91128219,0.00011494,2]
[401500353,1768275040135,-500.0,0.00011494,2]
[401500354,1768275040144,-500.0,0.00011494,2]
[401500355,1768275040154,-500.0,0.00011494,2]
[401500356,1768275040163,-500.0,0.00011494,2]
[401500357,1768275040173,-500.0,0.00011494,2]
[401500358,1768275040183,-500.0,0.00011494,2]
[401500359,1768275040192,-500.0,0.00011494,2]
[401500360,1768275040202,-500.0,0.00011494,2]
[401500361,1768275040212,-500.0,0.00011494,2]
[401500362,1768275040222,-500.0,0.00011494,2]
[401500363,1768275040231,-500.0,0.00011494,2]
[401500364,1768275040240,-500.0,0.00011494,2]
[401500365,1768275040250,-500.0,0.00011494,2]
[401500366,1768275040260,-500.0,0.00011494,2]
[401500367,1768275040270,-500.0,0.00011494,2]
[401500368,1768275040279,-500.0,0.00011494,2]
[401500369,1768275040288,-500.0,0.00011494,2]
[401500370,1768275040298,-500.0,0.00011494,2]
[401500371,1768275040307,-500.0,0.00011494,2]
[401500372,1768275040317,-213.60952674,0.00011494,2]
[401500373,1768275040327,-500.0,0.00011494,2]
[401500374,1768275040336,-500.0,0.00011494,2]
[401500375,1768275040345,-500.0,0.00011494,2]
[401500376,1768275040355,-500.0,0.00011494,2]
[401500377,1768275040365,-500.0,0.00011494,2]
[401500378,1768275040374,-500.0,0.00011494,2]
[401500380,1768275040384,-500.0,0.00011494,2]
[401500382,1768275040393,-500.0,0.00011494,2]
[401500383,1768275040403,-500.0,0.00011494,2]
[401500385,1768275040412,-500.0,0.00011494,2]
[401500387,1768275040422,-500.0,0.00011494,2]
[401500389,1768275040431,-500.0,0.00011494,2]
[401500391,1768275040441,-500.0,0.00011494,2]
[401500393,1768275040450,-500.0,0.00011494,2]
[401500395,1768275040459,-500.0,0.00011494,2]
[401500397,1768275040468,-500.0,0.00011494,2]
[401500399,1768275040477,-500.0,0.00011494,2]
[401500401,1768275040486,-500.0,0.00011494,2]
[401500403,1768275040495,-595.84647065,0.00011494,2]
[401500405,1768275040504,-500.0,0.00011494,2]
[401500407,1768275040514,-500.0,0.00011494,2]
[401500409,1768275040523,-500.0,0.00011494,2]
[401500411,1768275040532,-500.0,0.00011494,2]
[401500413,1768275040541,-500.0,0.00011494,2]
[401500415,1768275040550,-500.0,0.00011494,2]
[401500417,1768275040559,-500.0,0.00011494,2]
[401500419,1768275040568,-500.0,0.00011494,2]
[401500421,1768275040578,-500.0,0.00011494,2]
[401500423,1768275040588,-500.0,0.00011494,2]
[401500425,1768275040597,-500.0,0.00011494,2]
[401500427,1768275040607,-500.0,0.00011494,2]
[401500429,1768275040615,-500.0,0.00011494,2]
[401500431,1768275040625,-500.0,0.00011494,2]
[401500432,1768275040635,-500.0,0.00011494,2]
[401500435,1768275040644,-500.0,0.00011494,2]
[401500436,1768275040654,-500.0,0.00011494,2]
[401500439,1768275040663,-500.0,0.00011494,2]